{"text_format":"1","workbook":"xlsx","n_sheets":2,"sheets":["Conversões de Moeda","Taxas de Conversão"],"not_rendered":{"charts":0,"images":1,"macros":1,"external_links":0,"defined_names":7,"comments":0,"pivot_tables":0},"unopened":[],"bounds":{"document_bytes":16777216,"sheet_cells":100000,"rows_first":2000,"rows_last":500,"rows_between":2000,"halvings":0,"cell_chars":16384,"cell_head_chars":4096},"cells_cut":0,"cells_raw":0,"read":"whole","date_system":"1900"}

{"sheet":"Conversões de Moeda","index":0,"n_rows":10,"n_cols":5,"rows_kept":10,"cut":false,"hidden":false,"merged":[]}
[]
[]
[]
[]
[null,null,null,41,6000]
[]
[]
[]
[]
[null,null,null,27,{"$f":"IFERROR(IF(OR(DaMoeda=0,ParaMoeda=0),\"\",DoValor/OFFSET(Moedas,DaMoeda-1,3,1,1)*OFFSET(Moedas,ParaMoeda-1,3,1,1)),\"\")","v":36150}]

{"sheet":"Taxas de Conversão","index":1,"n_rows":59,"n_cols":5,"rows_kept":59,"cut":false,"hidden":false,"merged":[]}
["Taxas de Conversão"]
["Os dados nesta planilha são provenientes de uma consulta da Web do MSN Money. Eles são atualizados quando o botão Atualizar Taxas de Conversão é clicado na planilha Conversões de Moeda."]
[null,null,"Currency Rates Provided by MSN Money"]
[null,null,"Click here to visit MSN Money"]
[]
[null,"Nome da Lista","Name","In US$","   Per US$"]
[null,{"$f":"IF(ISERROR(FIND(\" to US Dollar\",C7)),C7,LEFT(C7,FIND(\" to US Dollar\",C7)-1))","v":"Argentine Peso"},"Argentine Peso to US Dollar",0.22119,4.5209999999999999]
[null,{"$f":"IF(ISERROR(FIND(\" to US Dollar\",C8)),C8,LEFT(C8,FIND(\" to US Dollar\",C8)-1))","v":"Australian Dollar"},"Australian Dollar to US Dollar",1.0116000000000001,0.98899999999999999]
[null,"Bahraini Dinar","Bahraini Dinar to US Dollar",2.6482999999999999,0.378]
[null,"Bolivian Boliviano","Bolivian Boliviano to US Dollar",0.14244999999999999,7.02]
[null,"Brazilian Real","Brazilian Real to US Dollar",0.48055999999999999,2.081]
[null,"British Pound","British Pound to US Dollar",1.5588,0.64200000000000002]
[null,"Canadian Dollar","Canadian Dollar to US Dollar",0.97665999999999997,1.024]
[null,"Chile Peso","Chile Peso to US Dollar",1.97E-3,506.8]
[null,"Chinese Yuan","Chinese Yuan to US Dollar",0.15703,6.3680000000000003]
[null,"Colombian Peso","Colombian Peso to US Dollar",5.5999999999999995E-4,1803]
[null,"Czech Koruna","Czech Koruna to US Dollar",4.8340000000000001E-2,20.686]
[null,"Danish Krone","Danish Krone to US Dollar",0.16835,5.94]
[null,"Euro","Euro to US Dollar",1.2513000000000001,0.79900000000000004]
[null,"Egyptian Pound*","Egyptian Pound* to US Dollar",0.16486000000000001,6.0659999999999998]
[null,"Hong Kong Dollar","Hong Kong Dollar to US Dollar",0.12889,7.7590000000000003]
[null,"Hungarian Forint","Hungarian Forint to US Dollar",4.3600000000000002E-3,229.4]
[null,"Indian Rupee","Indian Rupee to US Dollar",1.7569999999999999E-2,56.93]
[null,"Indonesia Rupiah","Indonesia Rupiah to US Dollar",1.1E-4,9450]
[null,"Japanese Yen","Japanese Yen to US Dollar",1.259E-2,79.400000000000006]
[null,"Jordanian Dinar","Jordanian Dinar to US Dollar",1.4117999999999999,0.70799999999999996]
[null,"Kenyan Shilling","Kenyan Shilling to US Dollar",1.187E-2,84.25]
[null,"South Korean Won","South Korean Won to US Dollar",8.7000000000000001E-4,1154]
[null,"Kuwaiti Dinar","Kuwaiti Dinar to US Dollar",3.5606,0.28100000000000003]
[null,"Morocco Dirham","Morocco Dirham to US Dollar",0.11323999999999999,8.8309999999999995]
[null,"Malaysian Ringgit","Malaysian Ringgit to US Dollar",0.31337999999999999,3.1909999999999998]
[null,"Mexican Peso","Mexican Peso to US Dollar",7.3770000000000002E-2,13.555999999999999]
[null,"Norwegian Krone","Norwegian Krone to US Dollar",0.16597999999999999,6.0250000000000004]
[null,"Omani Rial","Omani Rial to US Dollar",2.5966999999999998,0.38500000000000001]
[null,"Peruvian New Sol","Peruvian New Sol to US Dollar",0.37480999999999998,2.6680000000000001]
[null,"Philippine Peso","Philippine Peso to US Dollar",2.3619999999999999E-2,42.33]
[null,"Pakistani Rupee","Pakistani Rupee to US Dollar",1.051E-2,95.15]
[null,"Saudi Riyal","Saudi Riyal to US Dollar",0.26661000000000001,3.7509999999999999]
[null,"Singapore Dollar","Singapore Dollar to US Dollar",0.78373999999999999,1.276]
[null,"South African Rand","South African Rand to US Dollar",0.11895,8.407]
[null,"Swedish Krona","Swedish Krona to US Dollar",0.14243,7.0209999999999999]
[null,"Swiss Franc","Swiss Franc to US Dollar",1.0417000000000001,0.96]
[null,"Taiwan Dollar","Taiwan Dollar to US Dollar",3.3459999999999997E-2,29.888999999999999]
[null,"Thai Baht","Thai Baht to US Dollar",3.1359999999999999E-2,31.89]
[null,"Tunisian Dinar","Tunisian Dinar to US Dollar",0.62656999999999996,1.5960000000000001]
[null,"Emirati Dirham","Emirati Dirham to US Dollar",0.2722,3.6739999999999999]
[null,"United States Dollar","United States Dollar",1,1]
[null,"Venezuelan Bolivar","Venezuelan Bolivar to US Dollar",0.23282,4.2949999999999999]
[]
[]
[]
[null,null,"MSN Money",null,"Microsoft Office Update"]
[null,null,"Discover Investor's tools, columns, and more!",null,"Get the latest from Microsoft Office"]
[null,null,"Privacy"]
[null,null,"Legal"]
[null,null,"Advertise"]
[null,null,"MSN Worldwide"]
[null,null,"About our ads"]
[null,null,"© 2012 Microsoft "]